[Event "Early-Titled-Tuesday-Blitz-January-16-2024"]
[Site "Chess.com"]
[Date "2024.01.16"]
[Round "3"]
[White "ritanovikova"]
[Black "LeoLV10"]
[Result "0-1"]
[WhiteElo "2173"]
[BlackElo "2454"]
[TimeControl "180+1"]
[EndTime "8:29:19 PST"]
[Termination "LeoLV10 won on time"]

1. e4 {[%clk 0:03:00.2]} 1... c6 {[%clk 0:03:00.5]} 2. d4 {[%clk 0:03:00.1]}
2... d5 {[%clk 0:03:01.4]} 3. exd5 {[%clk 0:03:00.3]} 3... cxd5 {[%clk
0:03:02.3]} 4. Bd3 {[%clk 0:03:00.6]} 4... Nc6 {[%clk 0:03:02.6]} 5. c3 {[%clk
0:02:59.1]} 5... Nf6 {[%clk 0:03:02.5]} 6. h3 {[%clk 0:02:58.8]} 6... g6 {[%clk
0:03:03.4]} 7. Nf3 {[%clk 0:02:58.8]} 7... Bf5 {[%clk 0:03:03.7]} 8. Bxf5 {[%clk
0:02:56.7]} 8... gxf5 {[%clk 0:03:04.6]} 9. Qd3 {[%clk 0:02:56.5]} 9... e6
{[%clk 0:03:04.7]} 10. Bf4 {[%clk 0:02:55.7]} 10... Bd6 {[%clk 0:03:03.1]} 11.
Bxd6 {[%clk 0:02:54.6]} 11... Qxd6 {[%clk 0:03:04]} 12. Nbd2 {[%clk 0:02:54.6]}
12... Rg8 {[%clk 0:03:03.7]} 13. g3 {[%clk 0:02:47.1]} 13... Ne4 {[%clk
0:03:02.9]} 14. Nf1 {[%clk 0:02:27.5]} 14... O-O-O {[%clk 0:02:51.6]} 15. N3d2
{[%clk 0:02:27.4]} 15... e5 {[%clk 0:02:47.4]} 16. dxe5 {[%clk 0:02:13.1]} 16...
Nxe5 {[%clk 0:02:46.3]} 17. Qd4 {[%clk 0:02:13.4]} 17... Nc6 {[%clk 0:02:45.7]}
18. Qd3 {[%clk 0:01:50.9]} 18... Qc5 {[%clk 0:02:44.4]} 19. Ne3 {[%clk
0:01:31.9]} 19... d4 {[%clk 0:02:13.2]} 20. Nb3 {[%clk 0:01:31.8]} 20... dxe3
{[%clk 0:01:08.2]} 21. Nxc5 {[%clk 0:01:29.6]} 21... exf2+ {[%clk 0:01:08.5]}
22. Ke2 {[%clk 0:01:05.8]} 22... Rxd3 {[%clk 0:01:06.9]} 23. Nxd3 {[%clk
0:00:57.8]} 23... Nxg3+ {[%clk 0:01:03.9]} 24. Kxf2 {[%clk 0:00:57.3]} 24...
Nxh1+ {[%clk 0:01:02.9]} 25. Rxh1 {[%clk 0:00:58.2]} 25... Rd8 {[%clk
0:01:03.2]} 26. Ke3 {[%clk 0:00:55.5]} 26... Re8+ {[%clk 0:01:01.3]} 27. Kf2
{[%clk 0:00:52.9]} 27... Re4 {[%clk 0:00:58.9]} 28. Rg1 {[%clk 0:00:48.6]} 28...
Rh4 {[%clk 0:00:55.6]} 29. Kg3 {[%clk 0:00:43.4]} 29... Rh6 {[%clk 0:00:52.4]}
30. Rf1 {[%clk 0:00:39.5]} 30... Rg6+ {[%clk 0:00:50.8]} 31. Kh2 {[%clk
0:00:35.4]} 31... Rd6 {[%clk 0:00:48]} 32. Rf3 {[%clk 0:00:30.4]} 32... Ne7
{[%clk 0:00:41.1]} 33. Kg2 {[%clk 0:00:23.5]} 33... f6 {[%clk 0:00:40.8]} 34.
Kf2 {[%clk 0:00:22.6]} 34... b6 {[%clk 0:00:40.9]} 35. Ke2 {[%clk 0:00:22.6]}
35... Kd7 {[%clk 0:00:41]} 36. Nf4 {[%clk 0:00:20.4]} 36... Ke8 {[%clk
0:00:39.7]} 37. Nh5 {[%clk 0:00:19.8]} 37... Kf7 {[%clk 0:00:38.4]} 38. Ng3
{[%clk 0:00:18.9]} 38... Rd5 {[%clk 0:00:37.8]} 39. Re3 {[%clk 0:00:14.2]} 39...
Re5 {[%clk 0:00:36.9]} 40. Nf1 {[%clk 0:00:11.9]} 40... Nd5 {[%clk 0:00:35.9]}
41. Rxe5 {[%clk 0:00:07.8]} 41... fxe5 {[%clk 0:00:36.8]} 42. c4 {[%clk
0:00:06.9]} 42... Nf4+ {[%clk 0:00:35.9]} 43. Kf3 {[%clk 0:00:06]} 43... Nxh3
{[%clk 0:00:36.5]} 44. Ng3 {[%clk 0:00:05.3]} 44... Ke6 {[%clk 0:00:35.9]} 45.
b4 {[%clk 0:00:04.8]} 45... Ng5+ {[%clk 0:00:36.2]} 46. Ke2 {[%clk 0:00:03.8]}
46... f4 {[%clk 0:00:34.4]} 47. Nh5 {[%clk 0:00:02.6]} 47... Ne4 {[%clk
0:00:33.9]} 0-1

[Event "Early-Titled-Tuesday-Blitz-January-16-2024"]
[Site "Chess.com"]
[Date "2024.01.16"]
[Round "3"]
[White "MathiasWomacka"]
[Black "Viktor_Poddubnyi"]
[Result "1-0"]
[WhiteElo "2581"]
[BlackElo "2298"]
[TimeControl "180+1"]
[EndTime "8:29:19 PST"]
[Termination "MathiasWomacka won on time"]

1. e4 {[%clk 0:03:00.9]} 1... g6 {[%clk 0:03:00.3]} 2. d4 {[%clk 0:03:00]} 2...
Bg7 {[%clk 0:03:00.8]} 3. Nc3 {[%clk 0:03:00.3]} 3... d6 {[%clk 0:03:01]} 4. f4
{[%clk 0:02:59.5]} 4... Nf6 {[%clk 0:03:00]} 5. Nf3 {[%clk 0:02:58.1]} 5... c5
{[%clk 0:03:00.4]} 6. Bb5+ {[%clk 0:02:55.4]} 6... Bd7 {[%clk 0:02:55.5]} 7. e5
{[%clk 0:02:55.3]} 7... Ng4 {[%clk 0:02:39.7]} 8. Bxd7+ {[%clk 0:02:54.9]} 8...
Qxd7 {[%clk 0:01:59.3]} 9. d5 {[%clk 0:02:55.1]} 9... dxe5 {[%clk 0:01:30.5]}
10. h3 {[%clk 0:02:55.1]} 10... e4 {[%clk 0:01:19.4]} 11. hxg4 {[%clk
0:02:54.2]} 11... exf3 {[%clk 0:01:18.8]} 12. Qxf3 {[%clk 0:02:54.8]} 12... Na6
{[%clk 0:01:00.4]} 13. Bd2 {[%clk 0:02:55.1]} 13... O-O-O {[%clk 0:00:59.1]} 14.
O-O-O {[%clk 0:02:54.7]} 14... Nc7 {[%clk 0:00:56.3]} 15. Be1 {[%clk 0:02:52]}
15... h6 {[%clk 0:00:48.3]} 16. f5 {[%clk 0:02:47.2]} 16... Nb5 {[%clk
0:00:28.2]} 17. Nxb5 {[%clk 0:02:20.1]} 17... Qxb5 {[%clk 0:00:27.8]} 18. Bc3
{[%clk 0:02:20.9]} 18... Bxc3 {[%clk 0:00:24.9]} 19. Qxc3 {[%clk 0:02:21.8]}
19... Qa4 {[%clk 0:00:19.2]} 20. Qxc5+ {[%clk 0:02:10.1]} 20... Kb8 {[%clk
0:00:19.8]} 21. Kb1 {[%clk 0:02:10.6]} 21... Rc8 {[%clk 0:00:15.2]} 22. Qf2
{[%clk 0:01:46]} 22... Qxg4 {[%clk 0:00:15.3]} 23. fxg6 {[%clk 0:01:44.7]} 23...
fxg6 {[%clk 0:00:16.2]} 24. Rhe1 {[%clk 0:01:32.4]} 24... Rc7 {[%clk 0:00:16.6]}
25. Qe2 {[%clk 0:01:15.8]} 25... Qxe2 {[%clk 0:00:12.4]} 26. Rxe2 {[%clk
0:01:16.7]} 26... Rd8 {[%clk 0:00:11.2]} 27. Re6 {[%clk 0:01:14.1]} 27... Rd6
{[%clk 0:00:09.5]} 28. c3 {[%clk 0:01:02.3]} 28... Rcd7 {[%clk 0:00:05.5]} 29.
Rde1 {[%clk 0:00:54.1]} 29... Rxd5 {[%clk 0:00:04.1]} 30. Rxg6 {[%clk
0:00:53.4]} 30... Rg5 {[%clk 0:00:03.6]} 31. Rxg5 {[%clk 0:00:49.9]} 31... hxg5
{[%clk 0:00:04.5]} 32. Re5 {[%clk 0:00:49.5]} 32... Rd2 {[%clk 0:00:01.9]} 33.
Rxg5 {[%clk 0:00:48.8]} 33... Kc7 {[%clk 0:00:01.9]} 34. a4 {[%clk 0:00:45.4]}
34... Re2 {[%clk 0:00:01.7]} 35. Ka2 {[%clk 0:00:45]} 35... a6 {[%clk
0:00:01.9]} 36. a5 {[%clk 0:00:43.2]} 36... Kd7 {[%clk 0:00:01.7]} 37. Kb3
{[%clk 0:00:41.8]} 37... Kc7 {[%clk 0:00:01.9]} 38. g4 {[%clk 0:00:35.1]} 38...
Kd7 {[%clk 0:00:02.2]} 39. c4 {[%clk 0:00:31.3]} 39... Kd6 {[%clk 0:00:01.8]}
40. Kc3 {[%clk 0:00:30.7]} 40... Re3+ {[%clk 0:00:01.5]} 41. Kd4 {[%clk
0:00:27.2]} 41... Rb3 {[%clk 0:00:01.4]} 42. Rg6+ {[%clk 0:00:22.3]} 42... Kd7
{[%clk 0:00:01.6]} 43. Rb6 {[%clk 0:00:21.7]} 1-0

[Event "Early-Titled-Tuesday-Blitz-January-16-2024"]
[Site "Chess.com"]
[Date "2024.01.16"]
[Round "3"]
[White "FormerProdigy"]
[Black "DreamsAreFake"]
[Result "1-0"]
[WhiteElo "3015"]
[BlackElo "2741"]
[TimeControl "180+1"]
[EndTime "8:29:20 PST"]
[Termination "FormerProdigy won by checkmate"]

1. d4 {[%clk 0:03:00.9]} 1... Nf6 {[%clk 0:02:57.6]} 2. c4 {[%clk 0:03:01.2]}
2... b6 {[%clk 0:02:57.9]} 3. Nc3 {[%clk 0:02:59.6]} 3... Bb7 {[%clk 0:02:57.6]}
4. Qc2 {[%clk 0:02:58.3]} 4... d5 {[%clk 0:02:58]} 5. cxd5 {[%clk 0:02:59.2]}
5... Nxd5 {[%clk 0:02:58.6]} 6. e4 {[%clk 0:02:59.8]} 6... Nxc3 {[%clk
0:02:59.2]} 7. bxc3 {[%clk 0:03:00.7]} 7... e6 {[%clk 0:02:59.6]} 8. Nf3 {[%clk
0:02:56.9]} 8... Be7 {[%clk 0:03:00.2]} 9. Bd3 {[%clk 0:02:55.1]} 9... O-O
{[%clk 0:02:59.2]} 10. O-O {[%clk 0:02:54.8]} 10... c5 {[%clk 0:02:58.9]} 11.
Rd1 {[%clk 0:02:42]} 11... cxd4 {[%clk 0:02:55.6]} 12. cxd4 {[%clk 0:02:42.9]}
12... Nc6 {[%clk 0:02:55.7]} 13. Qb2 {[%clk 0:02:22]} 13... Rc8 {[%clk
0:02:41.2]} 14. Bf4 {[%clk 0:02:17.7]} 14... Na5 {[%clk 0:02:27.7]} 15. Rac1
{[%clk 0:02:12.9]} 15... Rxc1 {[%clk 0:02:11.6]} 16. Rxc1 {[%clk 0:02:13.8]}
16... Qa8 {[%clk 0:02:10.5]} 17. Qe2 {[%clk 0:02:09.1]} 17... Rc8 {[%clk
0:02:07.4]} 18. h4 {[%clk 0:02:09.1]} 18... Rxc1+ {[%clk 0:02:06]} 19. Bxc1
{[%clk 0:02:10]} 19... Qd8 {[%clk 0:02:03.3]} 20. h5 {[%clk 0:02:06.9]} 20... h6
{[%clk 0:02:03.2]} 21. Be3 {[%clk 0:01:57.6]} 21... Nc6 {[%clk 0:01:56.6]} 22.
Bb1 {[%clk 0:01:49.9]} 22... Qd6 {[%clk 0:01:39.2]} 23. e5 {[%clk 0:01:44.4]}
23... Qd5 {[%clk 0:01:19.8]} 24. Qd3 {[%clk 0:01:42.4]} 24... f5 {[%clk
0:01:07.9]} 25. exf6 {[%clk 0:01:39]} 25... Bxf6 {[%clk 0:01:08.3]} 26. Qh7+
{[%clk 0:01:39.4]} 26... Kf8 {[%clk 0:01:08.2]} 27. Be4 {[%clk 0:01:30.7]} 27...
Qxh5 {[%clk 0:00:41.4]} 28. Bg6 {[%clk 0:01:00.2]} 28... Qg4 {[%clk 0:00:41.1]}
29. Qh8+ {[%clk 0:01:00.3]} 29... Ke7 {[%clk 0:00:41]} 30. Qe8+ {[%clk
0:01:01.2]} 30... Kd6 {[%clk 0:00:40.4]} 31. Ne5 {[%clk 0:00:34.3]} 31... Nxe5
{[%clk 0:00:21]} 32. Qb8+ {[%clk 0:00:20.2]} 32... Kd5 {[%clk 0:00:15.8]} 33.
Qxb7+ {[%clk 0:00:17.6]} 33... Kc4 {[%clk 0:00:15]} 34. Bc2 {[%clk 0:00:12.7]}
34... Qe2 {[%clk 0:00:08]} 35. Qa6+ {[%clk 0:00:09.8]} 35... b5 {[%clk
0:00:06.7]} 36. Qxe6+ {[%clk 0:00:10.7]} 36... Kc3 {[%clk 0:00:06]} 37. Qb3#
{[%clk 0:00:10.1]} 1-0

[Event "Early-Titled-Tuesday-Blitz-January-16-2024"]
[Site "Chess.com"]
[Date "2024.01.16"]
[Round "3"]
[White "LimeInTheCoconut"]
[Black "Ezov"]
[Result "1-0"]
[WhiteElo "2553"]
[BlackElo "2248"]
[TimeControl "180+1"]
[EndTime "8:29:21 PST"]
[Termination "LimeInTheCoconut won on time"]

1. e4 {[%clk 0:03:00.9]} 1... e6 {[%clk 0:02:58.1]} 2. d4 {[%clk 0:03:00.3]}
2... d5 {[%clk 0:02:59]} 3. Nc3 {[%clk 0:03:00.2]} 3... Bb4 {[%clk 0:02:57.6]}
4. exd5 {[%clk 0:02:59.9]} 4... exd5 {[%clk 0:02:56.2]} 5. Bd3 {[%clk
0:02:59.7]} 5... Ne7 {[%clk 0:02:54.5]} 6. Qf3 {[%clk 0:02:58.5]} 6... Nbc6
{[%clk 0:02:49.3]} 7. Ne2 {[%clk 0:02:58.7]} 7... Be6 {[%clk 0:02:39.3]} 8. h3
{[%clk 0:02:53.6]} 8... Qd7 {[%clk 0:02:38.1]} 9. Bf4 {[%clk 0:02:48]} 9...
O-O-O {[%clk 0:02:31.7]} 10. a3 {[%clk 0:02:37.8]} 10... Ba5 {[%clk 0:02:27.5]}
11. O-O {[%clk 0:02:26.6]} 11... f6 {[%clk 0:02:26]} 12. Na4 {[%clk 0:02:25.3]}
12... Bb6 {[%clk 0:02:17.8]} 13. Nxb6+ {[%clk 0:02:23.4]} 13... axb6 {[%clk
0:02:18.7]} 14. a4 {[%clk 0:02:21.3]} 14... g5 {[%clk 0:02:15.7]} 15. Bh2 {[%clk
0:02:21.9]} 15... h5 {[%clk 0:02:14.7]} 16. Qxf6 {[%clk 0:02:05.5]} 16... Rdf8
{[%clk 0:02:06.9]} 17. Qxg5 {[%clk 0:01:57.7]} 17... Rfg8 {[%clk 0:02:01.6]} 18.
Qe3 {[%clk 0:01:10.9]} 18... Bxh3 {[%clk 0:01:59]} 19. Nf4 {[%clk 0:01:11.3]}
19... Bf5 {[%clk 0:01:41.8]} 20. Be2 {[%clk 0:00:57.1]} 20... Be4 {[%clk
0:01:26.7]} 21. Rfe1 {[%clk 0:00:40]} 21... Nf5 {[%clk 0:01:25.2]} 22. Qh3
{[%clk 0:00:36.7]} 22... Nfxd4 {[%clk 0:01:16.8]} 23. Qxd7+ {[%clk 0:00:33.3]}
23... Kxd7 {[%clk 0:01:15.8]} 24. Bd1 {[%clk 0:00:29.5]} 24... h4 {[%clk
0:01:00.8]} 25. c3 {[%clk 0:00:19.5]} 25... Nf3+ {[%clk 0:00:40.3]} 26. Bxf3
{[%clk 0:00:19]} 26... Bxf3 {[%clk 0:00:41.2]} 27. Re3 {[%clk 0:00:18.7]} 27...
Be4 {[%clk 0:00:38]} 28. f3 {[%clk 0:00:17.6]} 28... Bf5 {[%clk 0:00:30.9]} 29.
Nxd5 {[%clk 0:00:17.9]} 29... Rg7 {[%clk 0:00:09]} 30. b4 {[%clk 0:00:15.5]}
30... Be6 {[%clk 0:00:08.7]} 31. Nf4 {[%clk 0:00:14.8]} 31... Bf5 {[%clk
0:00:07]} 32. b5 {[%clk 0:00:14.2]} 32... Na5 {[%clk 0:00:05.8]} 33. Nd5 {[%clk
0:00:13.7]} 33... Nc4 {[%clk 0:00:04.6]} 34. Re2 {[%clk 0:00:12.7]} 34... Be6
{[%clk 0:00:03.5]} 35. Nf6+ {[%clk 0:00:11.6]} 35... Ke7 {[%clk 0:00:01.2]} 36.
Ne4 {[%clk 0:00:10.5]} 1-0

[Event "Early-Titled-Tuesday-Blitz-January-16-2024"]
[Site "Chess.com"]
[Date "2024.01.16"]
[Round "3"]
[White "YurasovMat-2012"]
[Black "Kiborg95"]
[Result "0-1"]
[WhiteElo "2591"]
[BlackElo "2875"]
[TimeControl "180+1"]
[EndTime "8:29:23 PST"]
[Termination "Kiborg95 won by resignation"]

1. e4 {[%clk 0:03:00.9]} 1... d6 {[%clk 0:02:59.5]} 2. Nf3 {[%clk 0:02:57.2]}
2... Nf6 {[%clk 0:02:59.3]} 3. Nc3 {[%clk 0:02:53.4]} 3... e5 {[%clk 0:02:59.6]}
4. d4 {[%clk 0:02:53.7]} 4... Nbd7 {[%clk 0:02:59.8]} 5. Bc4 {[%clk 0:02:53.7]}
5... Be7 {[%clk 0:02:59.5]} 6. O-O {[%clk 0:02:53.6]} 6... O-O {[%clk
0:02:59.9]} 7. h3 {[%clk 0:02:52.1]} 7... c6 {[%clk 0:02:59.8]} 8. Qe2 {[%clk
0:02:51.3]} 8... exd4 {[%clk 0:02:56.6]} 9. Nxd4 {[%clk 0:02:51]} 9... Re8
{[%clk 0:02:57.4]} 10. Rd1 {[%clk 0:02:48.7]} 10... Bf8 {[%clk 0:02:57.3]} 11.
Bg5 {[%clk 0:02:41.2]} 11... h6 {[%clk 0:02:47.8]} 12. Bh4 {[%clk 0:02:41.3]}
12... d5 {[%clk 0:02:41.8]} 13. Bb3 {[%clk 0:02:40.1]} 13... g5 {[%clk
0:02:27.1]} 14. Bg3 {[%clk 0:02:39.7]} 14... Nxe4 {[%clk 0:02:27.5]} 15. Nxe4
{[%clk 0:02:39.5]} 15... Rxe4 {[%clk 0:02:28.4]} 16. Qd2 {[%clk 0:02:38.2]}
16... Qf6 {[%clk 0:02:22.4]} 17. c4 {[%clk 0:02:36.5]} 17... dxc4 {[%clk
0:02:10.3]} 18. Bc2 {[%clk 0:02:25.3]} 18... Re8 {[%clk 0:02:09.5]} 19. Nf5
{[%clk 0:02:21.1]} 19... Nb6 {[%clk 0:01:37.9]} 20. Nd6 {[%clk 0:02:16.8]} 20...
Bxd6 {[%clk 0:01:37.9]} 21. Bxd6 {[%clk 0:02:14.2]} 21... Bf5 {[%clk 0:01:36]}
22. Bxf5 {[%clk 0:02:09.4]} 22... Qxf5 {[%clk 0:01:36.9]} 23. Qc3 {[%clk
0:02:05.5]} 23... Rad8 {[%clk 0:01:32.3]} 24. Re1 {[%clk 0:02:03.7]} 24... Rxe1+
{[%clk 0:01:16.3]} 25. Rxe1 {[%clk 0:02:02.9]} 25... Nd5 {[%clk 0:01:16.9]} 26.
Qd4 {[%clk 0:02:01.6]} 26... Nf4 {[%clk 0:01:04.4]} 27. f3 {[%clk 0:01:40.8]}
27... Ne6 {[%clk 0:00:49.9]} 28. Qd2 {[%clk 0:01:35.3]} 28... Qd3 {[%clk
0:00:47.3]} 29. Qxd3 {[%clk 0:01:32.4]} 29... cxd3 {[%clk 0:00:48.2]} 30. Be5
{[%clk 0:01:31.9]} 30... Rd5 {[%clk 0:00:44.7]} 31. Bc3 {[%clk 0:01:31.5]} 31...
c5 {[%clk 0:00:44.9]} 32. b3 {[%clk 0:01:29.9]} 32... b5 {[%clk 0:00:45]} 33.
Kf2 {[%clk 0:01:28]} 33... Kh7 {[%clk 0:00:45.1]} 34. Ke3 {[%clk 0:01:25.1]}
34... Kg6 {[%clk 0:00:45.2]} 35. g3 {[%clk 0:01:21.6]} 35... c4 {[%clk
0:00:43.6]} 36. bxc4 {[%clk 0:01:21.1]} 36... bxc4 {[%clk 0:00:44.5]} 37. Rb1
{[%clk 0:01:20.5]} 37... Nc7 {[%clk 0:00:38.3]} 38. a4 {[%clk 0:01:13.9]} 38...
Rd7 {[%clk 0:00:34.4]} 39. Kd2 {[%clk 0:01:07.8]} 39... Nd5 {[%clk 0:00:33.2]}
40. Bd4 {[%clk 0:01:08.4]} 40... Ne7 {[%clk 0:00:30.4]} 41. Bf2 {[%clk
0:01:05.5]} 41... Nc6 {[%clk 0:00:29.3]} 42. Rb5 {[%clk 0:01:01.6]} 42... f6
{[%clk 0:00:29.1]} 43. Rc5 {[%clk 0:00:50.1]} 43... Ne5 {[%clk 0:00:28.7]} 44.
f4 {[%clk 0:00:49]} 44... gxf4 {[%clk 0:00:29.6]} 45. gxf4 {[%clk 0:00:49.5]}
45... Nf3+ {[%clk 0:00:30.1]} 46. Kd1 {[%clk 0:00:50.1]} 46... Rb7 {[%clk
0:00:24.5]} 47. Rxc4 {[%clk 0:00:49.1]} 47... Rb1+ {[%clk 0:00:23.1]} 48. Rc1
{[%clk 0:00:48.9]} 48... Rxc1+ {[%clk 0:00:23.7]} 49. Kxc1 {[%clk 0:00:48.5]}
49... a6 {[%clk 0:00:24.4]} 50. Kb2 {[%clk 0:00:40.8]} 50... Kf5 {[%clk
0:00:24.3]} 51. Bg3 {[%clk 0:00:40.7]} 51... Ke4 {[%clk 0:00:22.2]} 52. Kc3
{[%clk 0:00:40.4]} 52... Ke3 {[%clk 0:00:22.2]} 0-1

[Event "Early-Titled-Tuesday-Blitz-January-16-2024"]
[Site "Chess.com"]
[Date "2024.01.16"]
[Round "3"]
[White "aloe_normansen"]
[Black "LaPiToB"]
[Result "1-0"]
[WhiteElo "2584"]
[BlackElo "2302"]
[TimeControl "180+1"]
[EndTime "8:29:23 PST"]
[Termination "aloe_normansen won by resignation"]

1. e4 {[%clk 0:03:00.9]} 1... c6 {[%clk 0:02:58.9]} 2. d4 {[%clk 0:03:00.4]}
2... d5 {[%clk 0:02:57.9]} 3. e5 {[%clk 0:02:59.9]} 3... Bf5 {[%clk 0:02:57.3]}
4. h4 {[%clk 0:02:57.4]} 4... h5 {[%clk 0:02:56.8]} 5. c4 {[%clk 0:02:55.9]}
5... e6 {[%clk 0:02:55.7]} 6. Nc3 {[%clk 0:02:55.5]} 6... Ne7 {[%clk 0:02:50.4]}
7. Nge2 {[%clk 0:02:51.4]} 7... dxc4 {[%clk 0:02:46.3]} 8. Ng3 {[%clk
0:02:51.1]} 8... b5 {[%clk 0:02:43.6]} 9. Bg5 {[%clk 0:02:48.3]} 9... Bg6 {[%clk
0:02:36.9]} 10. Nge4 {[%clk 0:02:44.8]} 10... Qa5 {[%clk 0:02:27.5]} 11. Nd6+
{[%clk 0:02:43.8]} 11... Kd7 {[%clk 0:02:26.5]} 12. a4 {[%clk 0:02:40.8]} 12...
b4 {[%clk 0:01:46]} 13. Nxc4 {[%clk 0:02:38.4]} 13... Qc7 {[%clk 0:01:44.1]} 14.
Na2 {[%clk 0:02:30.2]} 14... Nd5 {[%clk 0:01:42.7]} 15. Bd3 {[%clk 0:02:23.5]}
15... Bxd3 {[%clk 0:01:38.4]} 16. Qxd3 {[%clk 0:02:24.4]} 16... Be7 {[%clk
0:01:34.4]} 17. Bxe7 {[%clk 0:02:17.5]} 17... Kxe7 {[%clk 0:01:32.5]} 18. O-O
{[%clk 0:02:01.3]} 18... Rh6 {[%clk 0:01:28.7]} 19. Nd6 {[%clk 0:01:58.8]} 19...
Rg6 {[%clk 0:01:21.1]} 20. Qf3 {[%clk 0:01:55.9]} 20... Kf8 {[%clk 0:01:17.5]}
21. Qxh5 {[%clk 0:01:47.5]} 21... Ke7 {[%clk 0:00:40.5]} 22. Qf3 {[%clk
0:01:46]} 22... f6 {[%clk 0:00:38.7]} 23. Nc1 {[%clk 0:01:37.2]} 23... Nd7
{[%clk 0:00:38.1]} 24. Nd3 {[%clk 0:01:35.5]} 24... Rh8 {[%clk 0:00:36]} 25. Nf4
{[%clk 0:00:55.6]} 25... Nxf4 {[%clk 0:00:33.4]} 26. Qxf4 {[%clk 0:00:56.5]}
26... Rf8 {[%clk 0:00:24.2]} 27. Qe4 {[%clk 0:00:53.1]} 27... f5 {[%clk
0:00:20.5]} 28. Qe3 {[%clk 0:00:52.2]} 28... f4 {[%clk 0:00:20.5]} 29. Qe4
{[%clk 0:00:52]} 29... Rg4 {[%clk 0:00:19.1]} 30. g3 {[%clk 0:00:44.2]} 30... c5
{[%clk 0:00:18.7]} 31. Rac1 {[%clk 0:00:43.1]} 31... c4 {[%clk 0:00:18.8]} 32.
Rxc4 {[%clk 0:00:42.2]} 32... Qd8 {[%clk 0:00:18.7]} 33. Qf3 {[%clk 0:00:38.7]}
33... Rg6 {[%clk 0:00:17.5]} 34. Qh5 {[%clk 0:00:38.4]} 34... Rh6 {[%clk
0:00:08.4]} 35. Qg5+ {[%clk 0:00:38.1]} 35... Rhf6 {[%clk 0:00:06.6]} 36. Ne4
{[%clk 0:00:24.1]} 36... Nxe5 {[%clk 0:00:05.7]} 37. dxe5 {[%clk 0:00:17.4]}
37... Qd3 {[%clk 0:00:05.4]} 38. exf6+ {[%clk 0:00:13.9]} 38... gxf6 {[%clk
0:00:04.9]} 39. Rc7+ {[%clk 0:00:13.6]} 39... Kd8 {[%clk 0:00:05.2]} 40. Qc5
{[%clk 0:00:14]} 1-0

[Event "Early-Titled-Tuesday-Blitz-January-16-2024"]
[Site "Chess.com"]
[Date "2024.01.16"]
[Round "3"]
[White "laiciffOneslraCsungaM"]
[Black "UnTucopalaTimba"]
[Result "1-0"]
[WhiteElo "2370"]
[BlackElo "2013"]
[TimeControl "180+1"]
[EndTime "8:29:23 PST"]
[Termination "laiciffOneslraCsungaM won on time"]

1. d4 {[%clk 0:03:00.8]} 1... Nf6 {[%clk 0:02:59.3]} 2. Nc3 {[%clk 0:02:56.2]}
2... d5 {[%clk 0:02:50.7]} 3. Bf4 {[%clk 0:02:55]} 3... a6 {[%clk 0:02:48]} 4.
e3 {[%clk 0:02:50.1]} 4... e6 {[%clk 0:02:42]} 5. g4 {[%clk 0:02:47.1]} 5... h6
{[%clk 0:02:34.9]} 6. h4 {[%clk 0:02:42.8]} 6... c5 {[%clk 0:02:30.5]} 7. Qf3
{[%clk 0:02:36.1]} 7... cxd4 {[%clk 0:02:27.6]} 8. exd4 {[%clk 0:02:31.2]} 8...
h5 {[%clk 0:01:54.3]} 9. g5 {[%clk 0:02:27.7]} 9... Nfd7 {[%clk 0:01:50.2]} 10.
O-O-O {[%clk 0:02:21.9]} 10... Bb4 {[%clk 0:01:41.3]} 11. Nge2 {[%clk
0:02:16.8]} 11... Nc6 {[%clk 0:01:40.2]} 12. Bh3 {[%clk 0:02:06.5]} 12... Nb6
{[%clk 0:01:33]} 13. Rhe1 {[%clk 0:01:58.1]} 13... Bd6 {[%clk 0:01:27.6]} 14.
Bxd6 {[%clk 0:01:47.4]} 14... Qxd6 {[%clk 0:01:26.4]} 15. Nf4 {[%clk 0:01:48]}
15... Bd7 {[%clk 0:01:03.7]} 16. Ncxd5 {[%clk 0:01:39.4]} 16... Nxd5 {[%clk
0:00:58.7]} 17. Nxd5 {[%clk 0:01:39.2]} 17... O-O-O {[%clk 0:00:56.7]} 18. Nb6+
{[%clk 0:01:35.6]} 18... Kb8 {[%clk 0:00:53.7]} 19. Qxf7 {[%clk 0:01:28.2]}
19... Rhf8 {[%clk 0:00:44.3]} 20. Nxd7+ {[%clk 0:01:00.6]} 20... Rxd7 {[%clk
0:00:35.4]} 21. Qxe6 {[%clk 0:00:59.8]} 21... Qf4+ {[%clk 0:00:33.6]} 22. Kb1
{[%clk 0:00:58.5]} 22... Rxd4 {[%clk 0:00:29.1]} 23. Rxd4 {[%clk 0:00:47.1]}
23... Qxd4 {[%clk 0:00:24.5]} 24. Qe3 {[%clk 0:00:33.9]} 24... Qxh4 {[%clk
0:00:20.5]} 25. b3 {[%clk 0:00:30.4]} 25... Qb4 {[%clk 0:00:19.5]} 26. Bd7
{[%clk 0:00:28.3]} 26... Qd6 {[%clk 0:00:12.9]} 27. Bxc6 {[%clk 0:00:24.3]}
27... Qxc6 {[%clk 0:00:12.7]} 28. f4 {[%clk 0:00:21.1]} 28... Rc8 {[%clk
0:00:11.5]} 29. Re2 {[%clk 0:00:19.4]} 29... Qh1+ {[%clk 0:00:10]} 30. Kb2
{[%clk 0:00:19.1]} 30... Qc6 {[%clk 0:00:08.4]} 31. Qe5+ {[%clk 0:00:18.6]}
31... Ka8 {[%clk 0:00:07.9]} 32. Qxg7 {[%clk 0:00:18.6]} 32... h4 {[%clk
0:00:06.2]} 33. Qh6 {[%clk 0:00:15.6]} 33... Qc3+ {[%clk 0:00:05.1]} 34. Kb1
{[%clk 0:00:15.1]} 34... h3 {[%clk 0:00:04.9]} 35. Qf6 {[%clk 0:00:09.4]} 35...
Qf3 {[%clk 0:00:01.9]} 36. Qe6 {[%clk 0:00:08.5]} 36... Qf1+ {[%clk 0:00:01.1]}
37. Kb2 {[%clk 0:00:07.7]} 1-0